Cogmind - Beta 16 @@@ ROGUE MODE // 2026.02.05 @ 16:30:32 Player: Skergy Result: Destroyed by 8K-GV1(R) with Subdweller Machine Gun Performance ------------- Evolutions (0) 0 Regions Visited (2) 400 Robots Destroyed (30) 150 Value Destroyed (842) 842 Prototype IDs (15) 300 Alien Tech Used (0) 0 Bonus (0) 0 TOTAL SCORE: 1692 Bonus ------- None Cogmind --------- Core Integrity 0/250 Matter 280/300 Energy 250/250 System Corruption 0% Temperature Cool (0) Movement Core (600) Ox11 Location -10/Subcaves Parts ------- > --- POWER (1) -------- Ion Engine > --- PROPULSION (2) --- (None) > --- UTILITY (2) ------ Large Storage Unit Improved Terrain Scanner > --- WEAPON (2) ------- Subdweller Machine Gun Improved Light Cannon > --- INVENTORY (15) --- Subdweller Power Source Subdweller Power Source Aluminum Leg Arachnoskeleton Subdweller Optics Signal Interpreter Hardened Light Armor Plating Scrap Shield Hacking Suite Grenade Launcher Datajack Mining Laser Peak State ------------ > --- POWER ------------ Ion Engine > --- PROPULSION ------- Aluminum Leg Subdweller Monowheel > --- UTILITY ---------- Large Storage Unit Improved Terrain Scanner > --- WEAPON ----------- Subdweller Machine Gun Improved Light Cannon > --- INVENTORY -------- Subdweller Power Source Subdweller Power Source Aluminum Leg Arachnoskeleton Subdweller Optics Signal Interpreter Hardened Light Armor Plating Scrap Shield Hacking Suite Grenade Launcher Datajack Mining Laser [Rating: 16] Favorites ----------- Power Ion Engine Engine Ion Engine Propulsion Light Treads Treads Light Treads Leg Aluminum Leg Wheel Wheel Utility Large Storage Unit Device Seismic Detector Storage Large Storage Unit Protection Hardened Light Armor Plating Weapon Improved Light Cannon Ballistic Gun Subdweller Machine Gun Ballistic Cannon Improved Light Cannon Special Weapon Mining Laser Build | -11 -10 -10 ------- Run | Yrd Mat Sub Slots Evolved . | . . . Power . | . . . Propulsion . | . . . Utility . | . . . Weapon . | . . . Parts Attached 21 | 8 4 9 Power 3 | 2 . 1 Engine 3 | 2 . 1 Core . | . . . Reactor . | . . . Propulsion 6 | 2 1 3 Treads 2 | 2 . . Leg 2 | . . 2 Wheel 2 | . 1 1 Hover . | . . . Flight . | . . . Utility 5 | 2 1 2 Device 2 | 1 . 1 Storage 2 | 1 1 . Processor . | . . . Hackware . | . . . Protection 1 | . . 1 Artifact . | . . . Weapon 7 | 2 2 3 Energy Gun . | . . . Energy Cannon . | . . . Ballistic Gun 3 | 2 . 1 Ballistic Cannon 3 | . 2 1 Launcher . | . . . Special Weapon 1 | . . 1 Impact Weapon . | . . . Slashing Weapon . | . . . Piercing Weapon . | . . . Special Melee Weapon . | . . . Unidentified Prototypes . | . . . Parts Lost 9 | . 1 8 Power 1 | . . 1 Propulsion 5 | . 1 4 Utility 1 | . . 1 Weapon 2 | . . 2 Highest Loss Streak 3 | . 1 3 To Critical Strikes . | . . . Average Backups 11 | 3 8 13 Power 1 | . 1 1 Propulsion 1 | 1 2 1 Utility 4 | . 2 6 Weapon 2 | . 2 3 Tool/Special . | . . . Unused Backups 16 | . 1 15 Power 2 | . . 2 Propulsion 1 | . . 1 Utility 6 | . . 6 Weapon 5 | . 1 4 Tool/Special 2 | . . 2 Average Slot Usage (%) 99 | . 99 99 Engine 14 | . 14 14 Treads 12 | . 25 5 Leg 9 | . . 14 Wheel 5 | . 2 7 Device 10 | . 14 9 Storage 14 | . 14 14 Protection 3 | . . 4 Ballistic Gun 6 | . 7 6 Ballistic Cannon 20 | . 20 20 Peak Build Rating 16 | 7 11 16 Average Rating 10 | 5 9 11 On Entrance 6 | . 7 11 Avg Prop Armor Cover (%) 9 | . 10 9 Naked Turns . | . . . Heaviest Build 38 | 15 34 38 Greatest Support 40 | 40 40 20 Greatest Overweight (x) 3 | 3 3 3 Average Overweight (x) 1 | . . 2 Largest Inventory Capacity 15 | 8 15 15 Average Capacity 13 | 7 12 15 Most Carried 15 | 4 15 15 Average Carried 12 | 3 8 14 Final Capacity 15 | 8 15 15 Final Carried 15 | 4 15 15 Class Distribution -------------------- 98% | Mutant Dominant Class ---------------- Mutant | -10/Materials Mutant | -10/Subcaves Resources | -11 -10 -10 ----------- Run | Yrd Mat Sub Matter Collected 1090 | 291 444 355 Remotely . | . . . Salvage Created 665 | 92 388 185 Parts 55 | 8 32 15 Haulers Intercepted . | . . . Recyclers Shooed . | . . . Parts Field Recycled . | . . . Retrieved Matter . | . . . Parts Self-Destructed 13 | . . 13 Prevented . | . . . Parts Restored . | . . . Kills | -11 -10 -10 ------- Run | Yrd Mat Sub Combat Hostiles Destroyed 22 | . 15 7 Guns 2 | . 2 . Cannons 20 | . 13 7 Classes Destroyed 8 | 3 4 1 Worker 3 | 2 1 . Tunneler 1 | 1 . . Recycler 1 | 1 . . Watcher 3 | . 3 . Swarmer 3 | . 2 1 Grunt 10 | . 10 . Sentry 1 | . . 1 Subdweller 8 | . 3 5 Best Kill Streak 3 | 3 3 2 Combat Bots Only 3 | . 3 2 Max Kills in Single Turn 2 | 1 2 1 Gunslinging . | . . . Exploded . | . . . Melee . | . . . Uniques/NPCs Destroyed . | . . . Combat | -11 -10 -10 -------- Run | Yrd Mat Sub Hostile Shots Fired 135 | . 71 64 Missed 42 | . 24 18 Hits 93 | . 47 46 Projectile 93 | . 47 46 Critical Strikes 1 | . . 1 Damage Taken 1518 | . 692 826 Core 258 | . 100 158 Absorbed by Shields . | . . . Core Remaining (%) 100 | 100 . . Volleys Fired 100 | 7 50 43 Largest 2 | 2 2 2 Hottest 100 | 40 66 100 Shots Fired 191 | 14 100 77 Gun 49 | 14 22 13 Cannon 134 | . 78 56 Launcher . | . . . Special 8 | . . 8 Kinetic 183 | 14 100 69 Thermal 8 | . . 8 Explosive . | . . . Electromagnetic . | . . . Robot Hit Streak 15 | 9 11 15 Robot Miss Streak 6 | 1 4 6 Penetration Max . | . . . Secondary Targets 1 | . 1 . Max Gunslinging Chain 1 | . 1 . Shots Hit Robots 115 | 10 58 47 Core Hits 41 | 5 23 13 Critical Kills . | . . . Critical Parts Destroyed . | . . . Critical Strikes 1 | . 1 . Blast 1 | . 1 . Melee Attacks . | . . . Impact . | . . . Slashing . | . . . Piercing . | . . . Sneak Attacks . | . . . Combat Hostiles . | . . . Follow-up Attacks . | . . . Damage Inflicted 2287 | 140 1184 963 Guns 430 | 140 124 166 Cannons 1857 | . 1060 797 Explosions . | . . . Melee . | . . . Ramming . | . . . Kinetic 2287 | 140 1184 963 Thermal . | . . . Explosive . | . . . Electromagnetic . | . . . Impact . | . . . Slashing . | . . . Piercing . | . . . Highest Corruption . | . . . Average Corruption . | . . . Corruption Purged . | . . . Corruption Blocked . | . . . Overload Shots . | . . . Overflow Damage 14 | . 12 2 Projectiles 14 | . 12 2 Explosions . | . . . Melee . | . . . Knockbacks 15 | . 10 5 Impact . | . . . Kinetic 14 | . 9 5 Secondary 1 | . 1 . Self-Inflicted Damage . | . . . Shots . | . . . Rammed . | . . . Targets Rammed . | . . . Kicked . | . . . Crushed . | . . . Highest Temperature 159 | . 159 . Average Temperature 33 | . 33 . Received Heat Transfer 303 | . 207 96 Siege Activations . | . . . Martial Activations . | . . . Shielding Activations . | . . . Robots Disrupted . | . . . Combat Hostiles . | . . . Robots Corrupted . | . . . Combat Hostiles . | . . . Parts Fried . | . . . Impact Corruptions . | . . . Robots Melted . | . . . Combat Hostiles . | . . . Parts Melted . | . . . Heat Transferred . | . . . Parts Sabotaged . | . . . Parts Stolen . | . . . Parts Stripped . | . . . Power Chain Reactions . | . . . Alert | -11 -10 -10 ------- Run | Yrd Mat Sub Maximum Alert Level . | . . . Low Security (%) 100 | 100 100 . Level 1 . | . . . Level 2 . | . . . Level 3 . | . . . Level 4 . | . . . Level 5 . | . . . High Security . | . . . Max Security . | . . . Peak Influence 140 | 10 140 . Initial . | . . . Average 51 | . 59 . Influence Increases 486 | 20 416 50 Destroy 0b10 Robot/C 280 | . 240 40 Destroy 0b10 Robot/NC 40 | 20 20 . Destroy Leader 66 | . 56 10 Successful Hack 36 | . 36 . Disable Machine 45 | . 45 . Destroy Structure 4 | . 4 . Lose Combat Pursuer 15 | . 15 . Influence Decreases 486 | 20 357 109 Entered New Map 29 | . . 29 Time Decay 447 | 20 347 80 Lost Part 10 | . 10 . Squads Dispatched 3 | . 3 . Investigation 2 | . 2 . Extermination . | . . . Reinforcement 1 | . 1 . Assault . | . . . Garrison . | . . . Intercept . | . . . Searches Triggered . | . . . Construction Impeded . | . . . Haulers Reinforced . | . . . Active Scanning Responses . | . . . Cargo Convoy Interrupts . | . . . Stealth | -11 -10 -10 --------- Run | Yrd Mat Sub Distress Signals . | . . . Communications Jammed . | . . . Distress Signals . | . . . Times Spotted 35 | . 22 13 Peak Tracking Total 4 | . 4 3 Tactical Retreats 1 | . 1 . Traps | -11 -10 -10 ------- Run | Yrd Mat Sub Traps Triggered 1 | . 1 . Indirectly . | . . . Trap Hack Attempts . | . . . Triggered . | . . . Disarmed . | . . . Reprogrammed . | . . . Reused . | . . . Traps Extracted . | . . . Installed . | . . . Triggered . | . . . Machines | -11 -10 -10 ---------- Run | Yrd Mat Sub Machines Disabled 4 | . 3 1 Max in Single Turn 1 | . 1 1 Machines Repaired . | . . . Machines Dismantled . | . . . Machines Sabotaged . | . . . Overloaded Fab Kills . | . . . Hacking | -11 -10 -10 --------- Run | Yrd Mat Sub Machines Accessed 10 | . 9 1 Terminals 7 | . 7 . Fabricators . | . . . Repair Stations . | . . . Recycling Units 2 | . 2 . Scanalyzers . | . . . Garrison Access . | . . . Total Hacks 33 | . 32 1 Successful 17 | . 16 1 Failed 16 | . 16 . Catastrophic 1 | . 1 . Database Lockouts . | . . . Manual 21 | . 21 . Terminals 23 | . 23 . Fabricators . | . . . Repair Stations . | . . . Recycling Units 9 | . 9 . Scanalyzers . | . . . Garrison Access . | . . . Terminal Hacks 5 | . 4 1 Prototype ID Bank 2 | . 2 . Hauler Manifests 1 | . 1 . Zone Layout 1 | . 1 . Proto ID Catalog 1 | . . 1 Fabricator Hacks . | . . . Repair Station Hacks . | . . . Recycling Unit Hacks 1 | . 1 . Report Inventory 1 | . 1 . Scanalyzer . | . . . Garrison Access Hacks . | . . . Unauthorized Hacks 11 | . 11 . Terminals 7 | . 7 . Track 1 | . 1 . Botnet 4 | . 4 . Disrupt 1 | . 1 . Operators 1 | . 1 . Fabricators . | . . . Repair Stations . | . . . Recycling Units 4 | . 4 . Reject 1 | . 1 . Recyclers 1 | . 1 . Mask 2 | . 2 . Scanalyzers . | . . . Garrison Access . | . . . Data Cores Recovered . | . . . Used . | . . . Hacking Detections 8 | . 8 . Full Trace Events 1 | . 1 . Feedback Events . | . . . Feedback Blocked . | . . . Robot Schematics Acquired . | . . . Robots Built . | . . . Authchips . | . . . Time . | . . . Total Robot Build Rating . | . . . Part Schematics Acquired . | . . . Parts Built . | . . . Authchips . | . . . Time . | . . . Total Part Build Rating . | . . . Part Studies Acquired . | . . . Parts Repaired . | . . . Time . | . . . Parts Recycled . | . . . Recycled Matter . | . . . Retrieved Matter . | . . . Retrieved Components . | . . . Parts Scanalyzed . | . . . Part Schematics Acquired . | . . . Parts Damaged . | . . . Bothacking | -11 -10 -10 ------------ Run | Yrd Mat Sub Used RIF Installer . | . . . Robots Hacked . | . . . Non-combat . | . . . Combat . | . . . Robot Hacks Applied . | . . . Relay Couplers Released . | . . . Fabnet Peak Effective % . | . . . Robots Rewired . | . . . Allies Hacked . | . . . Hacks Repelled . | . . . Allies | -11 -10 -10 -------- Run | Yrd Mat Sub Total Allies . | . . . Largest Group . | . . . Highest-Rated Group . | . . . Highest-Rated Ally . | . . . Total Orders . | . . . Ally Attacks . | . . . Total Damage . | . . . Kills . | . . . Allies Corrupted . | . . . Allies Melted . | . . . Intel | -11 -10 -10 ------- Run | Yrd Mat Sub Active Infowar (turns) 2218 | 17 1011 1190 Terrain 187 | . . 187 Seismic 2031 | 17 1011 1003 Robot Analysis Total . | . . . Derelict Logs Recovered 2 | . . 2 Drone Launches . | . . . Drone Recoveries . | . . . Exploration | -11 -10 -10 ------------- Run | Yrd Mat Sub Turns Passed 3009 | 156 1011 1842 Spaces Moved 1716 | 77 546 1093 Core 5 | 5 . . Treads 491 | 72 419 . Legs 409 | . . 409 Wheels 811 | . 127 684 Hover . | . . . Flight . | . . . Fastest Speed 50 | 50 125 110 Average Speed 150 | 156 152 148 Slowest Speed 240 | 200 240 190 Overloaded Moves . | . . . Propulsion Burnouts . | . . . Robots Hopped . | . . . Potential Cave-ins . | . . . Cave-ins Triggered . | . . . Exploration Rate (%) 56 | 6 87 76 Regions Visited 2 Branch Regions 1 Pre-discovered Areas . | . . . Known Exits Taken . | . . . Unknown Exits Taken 2 | 1 1 . Scrap Searched 12 | . . 12 Spaces Dug . | . . . Terrain Destroyed 2 | . 2 . Melee . | . . . Projectile 2 | . 2 . AOE . | . . . Terrain Rammed . | . . . Walls Destroyed . | . . . Machines Disabled . | . . . Actions | -11 -10 -10 --------- Run | Yrd Mat Sub Total 1937 | 95 627 1215 Wait 57 | . 9 48 Move 1714 | 76 545 1093 Hop . | . . . Pick Up 26 | 4 13 9 Fast Attach 9 | 6 3 . Attach 7 | 1 . 6 Detach 1 | . 1 . Swap 12 | 1 1 10 Drop 11 | . 5 6 Fire 100 | 7 50 43 Melee . | . . . Ram . | . . . Kick . | . . . Crush . | . . . Escape Stasis . | . . . Rewire . | . . . Trap . | . . . Miscellaneous . | . . . Route ------- -11/Scrapyard -10/Materials (discovered 5 exits: [*Mat x3] / [*Min] / *Sub) -10/Subcaves (discovered 2 exits: [*Mat] / [*Scr]) History --------- Turn | Location | Event 32 | -11/Scrapyard | Discovered new exit (range 14) 157 | -11/Scrapyard | Entered Materials 277 | -10/Materials | Discovered new exit (range 15) 313 | -10/Materials | Build established: Mutant 635 | -10/Materials | Discovered new exit (range 12) 857 | -10/Materials | Derelicts attacked the area 904 | -10/Materials | Discovered new exit (range 13) 1039 | -10/Materials | Discovered new exit (range 15) 1046 | -10/Materials | Discovered new exit (range 8) 1168 | -10/Materials | Entered Subcaves 1169 | -10/Subcaves | Approached by a straggling Scientist 1270 | -10/Subcaves | Learned 4 Materials zone layouts 1368 | -10/Subcaves | Discovered new exit (range 9) 1437 | -10/Subcaves | A swath of the cavern ceiling suddenly collapsed 1450 | -10/Subcaves | Scientist uncovered a shortcut to Scraptown 1905 | -10/Subcaves | Disturbed a concealed Subdweller 1954 | -10/Subcaves | Core integrity fell below 50% 1982 | -10/Subcaves | Lost 3 parts (1p1n1w) 2358 | -10/Subcaves | Learned Materials trap positions 2462 | -10/Subcaves | Shifting Twisted Machinery released Sub. Monowheel 2809 | -10/Subcaves | Visited 4L-MR0's lab 2836 | -10/Subcaves | Found Arachnoskeleton 3003 | -10/Subcaves | Core integrity fell below 20% 3010 | -10/Subcaves | Destroyed by 8K-GV1(R) with Subdweller Machine Gun Last Messages --------------- Flightbrick Gun Armor Tower Shield Power Bank Rainbow Chip VL-GR5's Exoskeleton "Deathgrip" Powered Cannon 02824_ Dropped Visual Processing Unit. 02825_ Dropped Sub. Laser. 02825_ Dropped Sub. Optics. 02828_ 4L-MR0 mumbles to no one in particular: "Damn Subs sneaking around stealing my stuff." 02830_ Testing Chamber breached. 02836_ Acquired Arachnoskeleton. 02854_ Acquired 30 matter. 02958_ Acquired 10 matter. 02996_ 9K-TRJ(R) knocked back. 03004_ Aluminum Leg destroyed. 03008_ Sub. Monowheel destroyed. 03008_ 8K-GV1(R) knocked back. Map ----- +----------------------------------------------------+ | ?????????????????????????????????????????????????? | | ?????????????????????????????????????????????????? | | ?????????????????????????????????????????????????? | | ?????????????????????????????????????????????????? | | ?????????????????????????????????????????????????? | | ?????????????????????????????????????????????????? | | ?????????????????????????????????????????????????? | | ?????????????????????????????????????????????????? | | ?????????????????????????????????????????????????? | | ?????????????????????????????????????????????????? | | ?????????????????????????????????????????????????? | | ?????????????????????????????????????????????????? | | ?????????????????????????????????????????????????? | | ?????????????????????????????????????????????????? | | ??????????????????"#????????#????????????????????? | | ????????????????""" ####?????????????????????????? | | ????????????#?##" #????????????????????????? | | ????????????# # " ??????????????????????? | | ????????????? " "" ?????#????????????????? | | ?????????????? " """" "#??????????????????????? | | ??????????????# " "???????????????????????? | | ???????????????? " #######?????????????????? | | ?????????????????# ##"" ##????????????????? | | ?????????????????# " " "##" ####?????????????? | | ????????????????## " ## ##????????????? | | ?????????????#??# "R %@ ####?????????? | | ???????????????## "R ????????? | | ???????????????# " % < ????????? | | ??????????#????####### #####?????????? | | ???????????#?????????# ### ######???????? | | ???????????????????### ## #### ## ##??????? | | ??????????????????## ### #?# ???????? | | ?????????????????## #?# #### ##? #???????? | | ????????????#???## #?# ## #?# ????????? | | ????????????????# #?## ## ### ###??????? | | ????????????????### ##### #?# ##?????? | | ??????????????????## ### #### ##????? | | ???????????????#???# ## ## ###### | | ?????????????#?????## ## # # # | | ????????????????????# ## | | ????????????????????# ## # | | ??????#?????????????# ### ### ## ## ### | | ?????????????????#??## #### ####?## #######?# | | ????????????########## #####??####### #### #### | | ##?????????## ## #????## #?#### | | #?????????# % ###### #???## | | #?????????# % ###?##> # | | #????###### % % ## ## ####& | | #????# ### ###??# | | #??????# ####?# #????# | +----------------------------------------------------+ Best States ------------- Heat Dissipation 25 Energy Generation 10 Energy Capacity 250 Matter Stores 300 Matter Capacity 300 Sight Range 16 Terrain Scan Range 16 Terrain Scan Density 10 Armor Coverage 150 Evasion (%) 40 Recoil Reduction 2 Item Schematics ----------------- None Robot Schematics ------------------ None Fabricated ------------ Nothing Repaired ---------- Nothing Studied --------- None Alien Tech Used ----------------- None Achievements -------------- None Challenges ------------ None Game ------ Seed AssaultZipInsulator Manual? 0 Play Time 00:37:37 Cumulative 117.9 hours Start 2026.02.05 @ 15:14:43 End 2026.02.05 @ 16:30:32 Sessions 1 Manual Loads 0 Difficulty Rogue Special Mode None Game No. 125 Rogue 125 Adventurer 0 Explorer 0 Win Type - Total 4 Types 4/0/0/0/0/0/0/0/0/0 Lore% 66 Gallery% 54 Achievement% 40 Wizard Run 0 Options --------- Layout 1 ASCII 0 Keyboard 1 Movement Vi Keybinds 0 Fullscreen 2 Font 24/Terminus Map View 50x35 Zoom Use 0% Tactical HUD 1 Map Filters NONE Filters NONE Steam 1 RUN: b29e9e3e-35cc-46d2-b167-5a113cf3b475